[Event "Late-Titled-Tuesday-Blitz-October-03-2023"]
[Site "Chess.com"]
[Date "2023.10.03"]
[Round "7"]
[White "Maestro1986"]
[Black "Dr_crypt"]
[Result "1-0"]
[WhiteElo "2558"]
[BlackElo "2433"]
[TimeControl "180+1"]
[EndTime "15:13:43 PDT"]
[Termination "Maestro1986 won by resignation"]

1. Nf3 {[%clk 0:03:00.4]} 1... Nf6 {[%clk 0:02:58.2]} 2. g3 {[%clk 0:03:01.3]}
2... b6 {[%clk 0:02:51.8]} 3. Bg2 {[%clk 0:03:02.2]} 3... Bb7 {[%clk 0:02:52]}
4. O-O {[%clk 0:03:03.1]} 4... e6 {[%clk 0:02:52.1]} 5. c4 {[%clk 0:03:03.1]}
5... Be7 {[%clk 0:02:51.6]} 6. Qc2 {[%clk 0:03:02.8]} 6... O-O {[%clk 0:02:51]}
7. Nc3 {[%clk 0:03:02.6]} 7... c5 {[%clk 0:02:50.4]} 8. Re1 {[%clk 0:02:58]}
8... d5 {[%clk 0:02:45.4]} 9. cxd5 {[%clk 0:02:57.2]} 9... exd5 {[%clk
0:02:46.3]} 10. d4 {[%clk 0:02:46.9]} 10... Nc6 {[%clk 0:02:45.3]} 11. Rd1
{[%clk 0:02:24.9]} 11... Rc8 {[%clk 0:02:41.3]} 12. Bf4 {[%clk 0:02:18.2]} 12...
Re8 {[%clk 0:02:24.5]} 13. Bh3 {[%clk 0:02:08.9]} 13... Ra8 {[%clk 0:02:20]} 14.
Nb5 {[%clk 0:02:06.3]} 14... Bc8 {[%clk 0:01:48.7]} 15. Bc7 {[%clk 0:02:02.8]}
15... Bxh3 {[%clk 0:01:44.6]} 16. Bxd8 {[%clk 0:02:02.2]} 16... Rexd8 {[%clk
0:01:41.9]} 17. a3 {[%clk 0:01:50.2]} 17... a6 {[%clk 0:01:38.3]} 18. Nc3 {[%clk
0:01:48.9]} 18... g6 {[%clk 0:01:30.4]} 19. dxc5 {[%clk 0:01:42.5]} 19... Bxc5
{[%clk 0:01:20.7]} 20. Na4 {[%clk 0:01:33.7]} 20... Bf5 {[%clk 0:01:16.5]} 21.
Qc1 {[%clk 0:01:26.8]} 21... Ne4 {[%clk 0:00:59.1]} 22. Nxc5 {[%clk 0:01:23.1]}
22... bxc5 {[%clk 0:01:00]} 23. b4 {[%clk 0:01:18.1]} 23... Rac8 {[%clk
0:00:42.5]} 24. bxc5 {[%clk 0:01:09.7]} 24... d4 {[%clk 0:00:41.7]} 25. Qh6
{[%clk 0:01:00.5]} 25... f6 {[%clk 0:00:36.8]} 26. Nh4 {[%clk 0:00:58.4]} 26...
Ne7 {[%clk 0:00:25.1]} 27. Nxf5 {[%clk 0:00:41.8]} 27... Nxf5 {[%clk 0:00:26]}
28. Qf4 {[%clk 0:00:40.1]} 28... Nc3 {[%clk 0:00:24.5]} 29. Rd2 {[%clk
0:00:39.3]} 29... Rxc5 {[%clk 0:00:24]} 30. g4 {[%clk 0:00:35.4]} 30... g5
{[%clk 0:00:23.5]} 31. Qf3 {[%clk 0:00:30.5]} 31... Ng7 {[%clk 0:00:17.5]} 32.
Qxf6 {[%clk 0:00:25.8]} 32... Ne4 {[%clk 0:00:17.2]} 33. Qxd8+ {[%clk
0:00:24.8]} 33... Kf7 {[%clk 0:00:17.4]} 34. Qd7+ {[%clk 0:00:23.9]} 34... Kg6
{[%clk 0:00:17.2]} 35. Qxd4 {[%clk 0:00:20.4]} 1-0

[Event "Late-Titled-Tuesday-Blitz-October-03-2023"]
[Site "Chess.com"]
[Date "2023.10.03"]
[Round "7"]
[White "Alexei_Gubajdullin"]
[Black "crazy_but_lazy"]
[Result "1-0"]
[WhiteElo "2761"]
[BlackElo "2585"]
[TimeControl "180+1"]
[EndTime "15:13:45 PDT"]
[Termination "Alexei_Gubajdullin won by resignation"]

1. d4 {[%clk 0:03:00.9]} 1... g6 {[%clk 0:02:53.9]} 2. Nf3 {[%clk 0:03:01]} 2...
Bg7 {[%clk 0:02:53.7]} 3. Bf4 {[%clk 0:03:01.1]} 3... c5 {[%clk 0:02:53.7]} 4.
e3 {[%clk 0:03:01.2]} 4... b6 {[%clk 0:02:54]} 5. Be2 {[%clk 0:03:00.9]} 5...
Bb7 {[%clk 0:02:54.1]} 6. O-O {[%clk 0:03:01.1]} 6... Nf6 {[%clk 0:02:54]} 7. h3
{[%clk 0:03:01.4]} 7... O-O {[%clk 0:02:53.9]} 8. a4 {[%clk 0:03:00.4]} 8... d6
{[%clk 0:02:46.9]} 9. a5 {[%clk 0:02:55.4]} 9... a6 {[%clk 0:02:47]} 10. axb6
{[%clk 0:02:52.3]} 10... Qxb6 {[%clk 0:02:47.9]} 11. Nbd2 {[%clk 0:02:48.4]}
11... Nbd7 {[%clk 0:02:46.7]} 12. Nc4 {[%clk 0:02:47.5]} 12... Qc7 {[%clk
0:02:46.4]} 13. Na5 {[%clk 0:02:47.2]} 13... Be4 {[%clk 0:02:45.1]} 14. Nd2
{[%clk 0:02:37.3]} 14... Bf5 {[%clk 0:02:19.1]} 15. Bf3 {[%clk 0:02:32.1]} 15...
Rab8 {[%clk 0:02:19]} 16. Nc6 {[%clk 0:02:29.7]} 16... Rbe8 {[%clk 0:02:18.5]}
17. Rxa6 {[%clk 0:02:21]} 17... cxd4 {[%clk 0:01:35.4]} 18. exd4 {[%clk
0:02:02.2]} 18... Nb8 {[%clk 0:01:28.4]} 19. Nxb8 {[%clk 0:01:57.8]} 19... Qxb8
{[%clk 0:01:28.6]} 20. Nb3 {[%clk 0:01:46]} 20... Rc8 {[%clk 0:01:25.5]} 21. Bc6
{[%clk 0:01:16.4]} 21... Be4 {[%clk 0:00:32.2]} 22. d5 {[%clk 0:01:10.8]} 22...
e5 {[%clk 0:00:29.7]} 23. Be3 {[%clk 0:01:06]} 23... Nh5 {[%clk 0:00:27.5]} 24.
Nd2 {[%clk 0:00:51.7]} 24... f5 {[%clk 0:00:18.2]} 25. Nxe4 {[%clk 0:00:42]}
25... fxe4 {[%clk 0:00:18.5]} 26. Rb6 {[%clk 0:00:41.1]} 26... Qa7 {[%clk
0:00:15.6]} 27. Rb7 {[%clk 0:00:39.4]} 27... Qa5 {[%clk 0:00:14.6]} 28. Qg4
{[%clk 0:00:35]} 28... Nf4 {[%clk 0:00:14.9]} 29. Qd7 {[%clk 0:00:32.6]} 29...
Nh5 {[%clk 0:00:07.2]} 30. g4 {[%clk 0:00:32.4]} 30... Rcd8 {[%clk 0:00:06]} 31.
Qe6+ {[%clk 0:00:31.5]} 31... Kh8 {[%clk 0:00:06]} 32. gxh5 {[%clk 0:00:31.7]}
32... gxh5 {[%clk 0:00:03.9]} 33. Kh1 {[%clk 0:00:27.4]} 33... Rde8 {[%clk
0:00:04.4]} 34. Qd7 {[%clk 0:00:27]} 34... Rg8 {[%clk 0:00:02.9]} 35. Rg1 {[%clk
0:00:27.2]} 35... Qa2 {[%clk 0:00:02.6]} 36. Rxg7 {[%clk 0:00:24.2]} 36... Qb1+
{[%clk 0:00:03.2]} 37. Kh2 {[%clk 0:00:23.7]} 1-0

[Event "Late-Titled-Tuesday-Blitz-October-03-2023"]
[Site "Chess.com"]
[Date "2023.10.03"]
[Round "7"]
[White "Dacean99"]
[Black "ARTHURMOTIVATOR"]
[Result "1-0"]
[WhiteElo "2533"]
[BlackElo "2319"]
[TimeControl "180+1"]
[EndTime "15:13:46 PDT"]
[Termination "Dacean99 won on time"]

1. d4 {[%clk 0:02:56.2]} 1... Nf6 {[%clk 0:02:52.3]} 2. Nc3 {[%clk 0:02:54.2]}
2... d5 {[%clk 0:02:50.9]} 3. Bg5 {[%clk 0:02:54.1]} 3... Nbd7 {[%clk
0:02:44.5]} 4. Qd3 {[%clk 0:02:51]} 4... g6 {[%clk 0:02:43.3]} 5. e4 {[%clk
0:02:49.4]} 5... dxe4 {[%clk 0:02:40.1]} 6. Nxe4 {[%clk 0:02:50.3]} 6... Bg7
{[%clk 0:02:40.2]} 7. O-O-O {[%clk 0:02:49.7]} 7... O-O {[%clk 0:02:39.7]} 8. h4
{[%clk 0:02:48.2]} 8... b6 {[%clk 0:02:08.2]} 9. h5 {[%clk 0:02:43.8]} 9... Bb7
{[%clk 0:02:08.7]} 10. hxg6 {[%clk 0:02:42.8]} 10... Bxe4 {[%clk 0:02:03.7]} 11.
gxf7+ {[%clk 0:02:41.6]} 11... Rxf7 {[%clk 0:02:01.2]} 12. Qh3 {[%clk
0:02:42.5]} 12... Bg6 {[%clk 0:01:50.1]} 13. Bc4 {[%clk 0:02:41.3]} 13... Qf8
{[%clk 0:01:40]} 14. f4 {[%clk 0:02:40.1]} 14... Re8 {[%clk 0:01:33.3]} 15. f5
{[%clk 0:02:40]} 15... Bh5 {[%clk 0:01:27.9]} 16. Re1 {[%clk 0:02:36.1]} 16...
c6 {[%clk 0:01:21.7]} 17. Be6 {[%clk 0:02:33.5]} 17... Bh6 {[%clk 0:01:09.4]}
18. Bxf7+ {[%clk 0:02:25.1]} 18... Kxf7 {[%clk 0:01:02.8]} 19. Nf3 {[%clk
0:02:23.8]} 19... Qg7 {[%clk 0:00:59.4]} 20. Qh4 {[%clk 0:02:21]} 20... Rg8
{[%clk 0:00:56.8]} 21. Bxh6 {[%clk 0:02:09.8]} 21... Qxh6+ {[%clk 0:00:57.7]}
22. Kb1 {[%clk 0:02:08.9]} 22... Rg4 {[%clk 0:00:47.9]} 23. Qh3 {[%clk
0:02:04.2]} 23... Kf8 {[%clk 0:00:43.8]} 24. Re6 {[%clk 0:01:54.3]} 24... Qg7
{[%clk 0:00:34.5]} 25. a3 {[%clk 0:01:37.1]} 25... Rxg2 {[%clk 0:00:33.9]} 26.
Ne5 {[%clk 0:01:37.2]} 26... Be8 {[%clk 0:00:25]} 27. Nxc6 {[%clk 0:01:25.2]}
27... h5 {[%clk 0:00:20.5]} 28. Rxe7 {[%clk 0:01:23.8]} 28... Rg1+ {[%clk
0:00:14.5]} 29. Re1 {[%clk 0:01:22.2]} 29... Rxh1 {[%clk 0:00:12.3]} 30. Qxh1
{[%clk 0:01:23.1]} 30... Qg4 {[%clk 0:00:10.6]} 31. Ne5 {[%clk 0:01:17.8]} 31...
Qxd4 {[%clk 0:00:09]} 32. Nxd7+ {[%clk 0:01:15.9]} 32... Qxd7 {[%clk 0:00:09.1]}
33. Qh4 {[%clk 0:01:13.6]} 33... Qf7 {[%clk 0:00:06.9]} 34. Qg5 {[%clk 0:01:13]}
34... Bd7 {[%clk 0:00:05.5]} 35. Rg1 {[%clk 0:01:09.6]} 35... Ng4 {[%clk
0:00:04.9]} 36. f6 {[%clk 0:01:05]} 36... Be6 {[%clk 0:00:04.4]} 37. Rf1 {[%clk
0:01:02.5]} 37... Ba2+ {[%clk 0:00:04.1]} 38. Ka1 {[%clk 0:01:02.6]} 38... Bc4
{[%clk 0:00:05]} 39. Rf4 {[%clk 0:01:01.5]} 39... Be6 {[%clk 0:00:04.8]} 40. Rd4
{[%clk 0:00:58.9]} 40... Qc7 {[%clk 0:00:04]} 41. c3 {[%clk 0:00:52.4]} 41... a6
{[%clk 0:00:04.3]} 42. a4 {[%clk 0:00:51.8]} 42... b5 {[%clk 0:00:05.2]} 43.
axb5 {[%clk 0:00:49.4]} 43... Qa5+ {[%clk 0:00:05.1]} 44. Kb1 {[%clk 0:00:49.6]}
44... Qa2+ {[%clk 0:00:04.7]} 45. Kc1 {[%clk 0:00:49.5]} 45... Qa1+ {[%clk
0:00:03.8]} 46. Kc2 {[%clk 0:00:49.7]} 1-0

[Event "Late-Titled-Tuesday-Blitz-October-03-2023"]
[Site "Chess.com"]
[Date "2023.10.03"]
[Round "7"]
[White "GMG"]
[Black "ChristopherYoo"]
[Result "0-1"]
[WhiteElo "2766"]
[BlackElo "2997"]
[TimeControl "180+1"]
[EndTime "15:13:48 PDT"]
[Termination "ChristopherYoo won on time"]

1. d4 {[%clk 0:02:58.5]} 1... d5 {[%clk 0:02:59.9]} 2. c4 {[%clk 0:02:58.3]}
2... e6 {[%clk 0:03:00.2]} 3. Nf3 {[%clk 0:02:58.9]} 3... Nf6 {[%clk 0:03:00.2]}
4. Nc3 {[%clk 0:02:59.5]} 4... h6 {[%clk 0:02:57.7]} 5. g3 {[%clk 0:02:55.5]}
5... Nc6 {[%clk 0:02:52.9]} 6. Bg2 {[%clk 0:02:48.4]} 6... Bd6 {[%clk
0:02:51.6]} 7. b3 {[%clk 0:02:47.4]} 7... O-O {[%clk 0:02:49.7]} 8. Bb2 {[%clk
0:02:47.5]} 8... Re8 {[%clk 0:02:35.2]} 9. O-O {[%clk 0:02:40.1]} 9... dxc4
{[%clk 0:02:19.8]} 10. bxc4 {[%clk 0:02:41]} 10... e5 {[%clk 0:02:20.2]} 11. Nb5
{[%clk 0:02:15.5]} 11... e4 {[%clk 0:02:00.9]} 12. Nxd6 {[%clk 0:02:05.7]} 12...
cxd6 {[%clk 0:01:56.9]} 13. Ne1 {[%clk 0:01:53.5]} 13... Na5 {[%clk 0:01:44.3]}
14. Rc1 {[%clk 0:01:53.1]} 14... d5 {[%clk 0:01:41.9]} 15. c5 {[%clk 0:01:12.3]}
15... e3 {[%clk 0:01:22.9]} 16. f3 {[%clk 0:00:58.6]} 16... Bf5 {[%clk
0:01:09.3]} 17. g4 {[%clk 0:00:51.4]} 17... Bg6 {[%clk 0:01:04.9]} 18. Nd3
{[%clk 0:00:50.6]} 18... Nc4 {[%clk 0:01:01.2]} 19. Bc3 {[%clk 0:00:50.7]} 19...
Bxd3 {[%clk 0:00:38.9]} 20. Qxd3 {[%clk 0:00:51.6]} 20... Nd7 {[%clk 0:00:31.2]}
21. Be1 {[%clk 0:00:20.2]} 21... Nf8 {[%clk 0:00:25.7]} 22. Bg3 {[%clk
0:00:18.7]} 22... Ne6 {[%clk 0:00:20.2]} 23. f4 {[%clk 0:00:18.3]} 23... Qd7
{[%clk 0:00:12.6]} 24. Rc2 {[%clk 0:00:17.7]} 24... Rad8 {[%clk 0:00:06.7]} 25.
Rd1 {[%clk 0:00:17.4]} 25... b6 {[%clk 0:00:06.7]} 26. f5 {[%clk 0:00:07.2]}
26... Ng5 {[%clk 0:00:05.9]} 27. cxb6 {[%clk 0:00:07.3]} 27... axb6 {[%clk
0:00:06.8]} 28. Bf4 {[%clk 0:00:03.4]} 28... Ne4 {[%clk 0:00:05.4]} 29. Qb3
{[%clk 0:00:03]} 29... Ned2 {[%clk 0:00:05.1]} 0-1

[Event "Late-Titled-Tuesday-Blitz-October-03-2023"]
[Site "Chess.com"]
[Date "2023.10.03"]
[Round "7"]
[White "azikom"]
[Black "marik_spb"]
[Result "1-0"]
[WhiteElo "2597"]
[BlackElo "2391"]
[TimeControl "180+1"]
[EndTime "15:13:48 PDT"]
[Termination "azikom won by checkmate"]

1. d4 {[%clk 0:03:00.1]} 1... Nf6 {[%clk 0:02:59.8]} 2. c4 {[%clk 0:02:59.5]}
2... e6 {[%clk 0:03:00.1]} 3. Nc3 {[%clk 0:02:59.9]} 3... Bb4 {[%clk 0:03:00.2]}
4. e3 {[%clk 0:03:00.2]} 4... c5 {[%clk 0:03:00.1]} 5. Ne2 {[%clk 0:02:59.9]}
5... O-O {[%clk 0:02:59.6]} 6. a3 {[%clk 0:02:58.6]} 6... Bxc3+ {[%clk
0:02:59.7]} 7. Nxc3 {[%clk 0:02:57.8]} 7... cxd4 {[%clk 0:02:57.1]} 8. exd4
{[%clk 0:02:55.1]} 8... d5 {[%clk 0:02:57.6]} 9. c5 {[%clk 0:02:54.4]} 9... Nc6
{[%clk 0:02:54.1]} 10. Bf4 {[%clk 0:02:53.8]} 10... e5 {[%clk 0:02:49.2]} 11.
dxe5 {[%clk 0:02:52.5]} 11... Re8 {[%clk 0:02:44]} 12. Bb5 {[%clk 0:02:51.1]}
12... d4 {[%clk 0:02:33.8]} 13. O-O {[%clk 0:02:03.6]} 13... dxc3 {[%clk
0:02:18.5]} 14. Qxd8 {[%clk 0:01:59.8]} 14... Rxd8 {[%clk 0:02:18.3]} 15. exf6
{[%clk 0:02:00.1]} 15... Nd4 {[%clk 0:01:35]} 16. Bc4 {[%clk 0:01:55]} 16... Be6
{[%clk 0:01:19.5]} 17. Bxe6 {[%clk 0:01:51.8]} 17... Ne2+ {[%clk 0:00:58.7]} 18.
Kh1 {[%clk 0:01:51.2]} 18... Nxf4 {[%clk 0:00:59.3]} 19. Bg4 {[%clk 0:01:32.6]}
19... cxb2 {[%clk 0:00:55.7]} 20. Rab1 {[%clk 0:01:32.2]} 20... Rd2 {[%clk
0:00:54.3]} 21. fxg7 {[%clk 0:01:19.8]} 21... Nd3 {[%clk 0:00:20.1]} 22. Kg1
{[%clk 0:01:06.4]} 22... Nxc5 {[%clk 0:00:19.3]} 23. g3 {[%clk 0:00:57.6]} 23...
Kxg7 {[%clk 0:00:18.6]} 24. Rfe1 {[%clk 0:00:46.6]} 24... Na4 {[%clk 0:00:18]}
25. Re3 {[%clk 0:00:33.3]} 25... Rad8 {[%clk 0:00:18.2]} 26. Rb3 {[%clk
0:00:32.4]} 26... b6 {[%clk 0:00:15.7]} 27. Kg2 {[%clk 0:00:30.7]} 27... R8d3
{[%clk 0:00:15.3]} 28. Rb4 {[%clk 0:00:22.6]} 28... Rxa3 {[%clk 0:00:15.2]} 29.
Bf5 {[%clk 0:00:18.1]} 29... a5 {[%clk 0:00:13.9]} 30. Rg4+ {[%clk 0:00:16.2]}
30... Kf8 {[%clk 0:00:13.4]} 31. Bxh7 {[%clk 0:00:15]} 31... Nc3 {[%clk
0:00:13.2]} 32. Re1 {[%clk 0:00:13.6]} 32... Ra1 {[%clk 0:00:12.7]} 33. Rg8#
{[%clk 0:00:12.7]} 1-0

[Event "Late-Titled-Tuesday-Blitz-October-03-2023"]
[Site "Chess.com"]
[Date "2023.10.03"]
[Round "7"]
[White "dedpihto_v_kozhanom_palto"]
[Black "Giorno"]
[Result "0-1"]
[WhiteElo "2677"]
[BlackElo "2516"]
[TimeControl "180+1"]
[EndTime "15:13:49 PDT"]
[Termination "Giorno won on time"]

1. c4 {[%clk 0:03:00.9]} 1... b6 {[%clk 0:02:55.5]} 2. Nc3 {[%clk 0:03:00.8]}
2... Bb7 {[%clk 0:02:54]} 3. d4 {[%clk 0:03:01.4]} 3... e6 {[%clk 0:02:49.8]} 4.
a3 {[%clk 0:03:01.5]} 4... f5 {[%clk 0:02:48.9]} 5. d5 {[%clk 0:03:01.8]} 5...
e5 {[%clk 0:02:45.8]} 6. e4 {[%clk 0:02:54.4]} 6... Nf6 {[%clk 0:02:43.1]} 7.
exf5 {[%clk 0:02:48.8]} 7... Be7 {[%clk 0:02:33.3]} 8. Bd3 {[%clk 0:02:48.4]}
8... c6 {[%clk 0:02:28.8]} 9. Bc2 {[%clk 0:02:39.9]} 9... cxd5 {[%clk
0:02:23.9]} 10. cxd5 {[%clk 0:02:40.8]} 10... d6 {[%clk 0:02:16.3]} 11. Nf3
{[%clk 0:02:40.7]} 11... h6 {[%clk 0:02:13.6]} 12. O-O {[%clk 0:02:38]} 12...
Nbd7 {[%clk 0:02:06.2]} 13. Nh4 {[%clk 0:02:33.3]} 13... O-O {[%clk 0:02:06.2]}
14. Ng6 {[%clk 0:02:32.8]} 14... Rf7 {[%clk 0:02:05.7]} 15. Be3 {[%clk
0:02:13.7]} 15... Nf8 {[%clk 0:01:57.5]} 16. Rc1 {[%clk 0:02:07.6]} 16... Nxg6
{[%clk 0:01:52.7]} 17. fxg6 {[%clk 0:02:08.5]} 17... Rf8 {[%clk 0:01:53.2]} 18.
Bf5 {[%clk 0:01:50.9]} 18... Bc8 {[%clk 0:01:51.9]} 19. Bxc8 {[%clk 0:01:33.7]}
19... Rxc8 {[%clk 0:01:29.2]} 20. f4 {[%clk 0:01:32.8]} 20... e4 {[%clk
0:01:24.7]} 21. Qd4 {[%clk 0:01:19.8]} 21... Qd7 {[%clk 0:01:12.8]} 22. Nxe4
{[%clk 0:01:15.9]} 22... Nxe4 {[%clk 0:01:05.4]} 23. Qxe4 {[%clk 0:01:15.9]}
23... Bf6 {[%clk 0:01:06]} 24. Qb4 {[%clk 0:00:18.1]} 24... Rce8 {[%clk
0:01:03.4]} 25. Bf2 {[%clk 0:00:16.9]} 25... Qf5 {[%clk 0:00:51]} 26. Qxd6
{[%clk 0:00:15.5]} 26... Qxg6 {[%clk 0:00:45.9]} 27. Rfe1 {[%clk 0:00:11.3]}
27... Qd3 {[%clk 0:00:33.2]} 28. Rxe8 {[%clk 0:00:07.7]} 28... Rxe8 {[%clk
0:00:34.1]} 29. Qd7 {[%clk 0:00:04.7]} 29... Re7 {[%clk 0:00:32.9]} 30. Qc6
{[%clk 0:00:01.2]} 30... Bxb2 {[%clk 0:00:27.3]} 31. Rf1 {[%clk 0:00:01.4]}
31... Bf6 {[%clk 0:00:25.1]} 32. h3 {[%clk 0:00:01.9]} 32... Re2 {[%clk
0:00:19.2]} 33. d6 {[%clk 0:00:01.7]} 33... Rd2 {[%clk 0:00:18.3]} 0-1

[Event "Late-Titled-Tuesday-Blitz-October-03-2023"]
[Site "Chess.com"]
[Date "2023.10.03"]
[Round "7"]
[White "jinxy2009"]
[Black "Elbebiber"]
[Result "0-1"]
[WhiteElo "2260"]
[BlackElo "2154"]
[TimeControl "180+1"]
[EndTime "15:13:50 PDT"]
[Termination "Elbebiber won by checkmate"]

1. e4 {[%clk 0:02:57.1]} 1... d5 {[%clk 0:03:00.1]} 2. exd5 {[%clk 0:02:57.1]}
2... Nf6 {[%clk 0:03:00]} 3. d4 {[%clk 0:02:55.9]} 3... Nxd5 {[%clk 0:02:59.4]}
4. c4 {[%clk 0:02:55.4]} 4... Nb6 {[%clk 0:02:59.1]} 5. Nc3 {[%clk 0:02:53.6]}
5... e5 {[%clk 0:02:48.6]} 6. dxe5 {[%clk 0:02:46]} 6... Qxd1+ {[%clk
0:02:42.8]} 7. Nxd1 {[%clk 0:02:46.9]} 7... Nc6 {[%clk 0:02:40.4]} 8. f4 {[%clk
0:02:41.2]} 8... Be6 {[%clk 0:02:40.1]} 9. Ne3 {[%clk 0:02:33]} 9... Bb4+ {[%clk
0:02:38.1]} 10. Bd2 {[%clk 0:02:32.2]} 10... Bxd2+ {[%clk 0:02:38.3]} 11. Kxd2
{[%clk 0:02:32.6]} 11... O-O-O+ {[%clk 0:02:36.6]} 12. Kc3 {[%clk 0:02:31.5]}
12... Rd4 {[%clk 0:02:31.1]} 13. f5 {[%clk 0:02:13.5]} 13... Na4+ {[%clk
0:02:17.1]} 14. Kc2 {[%clk 0:01:59.4]} 14... Re4 {[%clk 0:01:27.8]} 15. fxe6
{[%clk 0:01:35.5]} 15... Rxe3 {[%clk 0:01:27.5]} 16. exf7 {[%clk 0:01:27.8]}
16... Nxe5 {[%clk 0:01:21]} 17. Be2 {[%clk 0:00:51.2]} 17... Nxf7 {[%clk
0:01:14.4]} 18. Bg4+ {[%clk 0:00:50.8]} 18... Kb8 {[%clk 0:01:12.1]} 19. Nf3
{[%clk 0:00:50.4]} 19... Rhe8 {[%clk 0:01:02.7]} 20. Rhe1 {[%clk 0:00:26.2]}
20... Re2+ {[%clk 0:00:55.8]} 21. Rxe2 {[%clk 0:00:14.6]} 21... Rxe2+ {[%clk
0:00:55.2]} 22. Kb3 {[%clk 0:00:14.2]} 22... Nc5+ {[%clk 0:00:49.8]} 23. Kb4
{[%clk 0:00:14.6]} 23... b6 {[%clk 0:00:47.5]} 24. Ng5 {[%clk 0:00:08.3]} 24...
Rxb2+ {[%clk 0:00:46.4]} 25. Ka3 {[%clk 0:00:08.6]} 25... Rxg2 {[%clk
0:00:43.9]} 26. Nxf7 {[%clk 0:00:08.8]} 26... Rxg4 {[%clk 0:00:44]} 27. Re1
{[%clk 0:00:07.2]} 27... Rxc4 {[%clk 0:00:41.2]} 28. Re8+ {[%clk 0:00:08.1]}
28... Kb7 {[%clk 0:00:41.4]} 29. Re7 {[%clk 0:00:09]} 29... Ka6 {[%clk
0:00:41.1]} 30. Rxc7 {[%clk 0:00:08.6]} 30... Ra4+ {[%clk 0:00:39.2]} 31. Kb2
{[%clk 0:00:08.4]} 31... Rh4 {[%clk 0:00:39.2]} 32. Nd6 {[%clk 0:00:08.1]} 32...
Rxh2+ {[%clk 0:00:38.4]} 33. Ka3 {[%clk 0:00:07.8]} 33... Rh3+ {[%clk
0:00:38.7]} 34. Kb4 {[%clk 0:00:07.1]} 34... Rh4+ {[%clk 0:00:38.1]} 35. Ka3
{[%clk 0:00:07.2]} 35... Ne4 {[%clk 0:00:34]} 36. Nc8 {[%clk 0:00:05.4]} 36...
Kb5 {[%clk 0:00:29.5]} 37. Rxg7 {[%clk 0:00:04.6]} 37... a5 {[%clk 0:00:24.3]}
38. Na7+ {[%clk 0:00:03.9]} 38... Ka6 {[%clk 0:00:24.3]} 39. Nc6 {[%clk
0:00:03.9]} 39... Rh3+ {[%clk 0:00:24.1]} 40. Ka4 {[%clk 0:00:03.8]} 40... b5#
{[%clk 0:00:23.9]} 0-1

[Event "Late-Titled-Tuesday-Blitz-October-03-2023"]
[Site "Chess.com"]
[Date "2023.10.03"]
[Round "7"]
[White "falzehope0"]
[Black "chessajedrezz2020"]
[Result "0-1"]
[WhiteElo "2353"]
[BlackElo "2687"]
[TimeControl "180+1"]
[EndTime "15:13:52 PDT"]
[Termination "chessajedrezz2020 won by resignation"]

1. d4 {[%clk 0:03:00.9]} 1... d5 {[%clk 0:02:44.4]} 2. e3 {[%clk 0:02:54.9]}
2... Nf6 {[%clk 0:02:41.2]} 3. Bd3 {[%clk 0:02:54.4]} 3... g6 {[%clk 0:02:31.4]}
4. f4 {[%clk 0:02:53.9]} 4... Bg7 {[%clk 0:02:28.1]} 5. Nf3 {[%clk 0:02:50.6]}
5... O-O {[%clk 0:02:25.9]} 6. O-O {[%clk 0:02:50.4]} 6... c5 {[%clk 0:01:36]}
7. c3 {[%clk 0:02:49.5]} 7... b6 {[%clk 0:01:35.1]} 8. Nbd2 {[%clk 0:02:46.5]}
8... Ba6 {[%clk 0:01:34.6]} 9. Bxa6 {[%clk 0:02:44.3]} 9... Nxa6 {[%clk
0:01:34.5]} 10. b3 {[%clk 0:02:42.2]} 10... Rc8 {[%clk 0:00:54.9]} 11. Ba3
{[%clk 0:02:36]} 11... Nc7 {[%clk 0:00:46.5]} 12. c4 {[%clk 0:02:24.3]} 12...
Ne6 {[%clk 0:00:20.7]} 13. Bb2 {[%clk 0:02:12.6]} 13... cxd4 {[%clk 0:00:14.2]}
14. Nxd4 {[%clk 0:02:04.2]} 14... Nc5 {[%clk 0:00:14.2]} 15. f5 {[%clk
0:01:54.5]} 15... Qd7 {[%clk 0:00:04.7]} 16. Kh1 {[%clk 0:01:53.1]} 16... Rcd8
{[%clk 0:00:03.5]} 17. Qe2 {[%clk 0:01:50.8]} 17... Nce4 {[%clk 0:00:03.5]} 18.
N2f3 {[%clk 0:01:45.7]} 18... Nc5 {[%clk 0:00:03.6]} 19. Ne5 {[%clk 0:01:44.7]}
19... Qc7 {[%clk 0:00:04.2]} 20. Ng4 {[%clk 0:01:43.9]} 20... Nxg4 {[%clk
0:00:03.9]} 21. Qxg4 {[%clk 0:01:43.5]} 21... Nd3 {[%clk 0:00:04.1]} 22. Bc3
{[%clk 0:01:40.5]} 22... dxc4 {[%clk 0:00:04.6]} 23. fxg6 {[%clk 0:01:32.6]}
23... hxg6 {[%clk 0:00:03.8]} 24. Rad1 {[%clk 0:01:08.5]} 24... Ne5 {[%clk
0:00:02.8]} 25. Qg3 {[%clk 0:00:29.2]} 25... cxb3 {[%clk 0:00:03.7]} 26. Ba1
{[%clk 0:00:27.6]} 26... bxa2 {[%clk 0:00:03.8]} 27. Nf3 {[%clk 0:00:26.3]}
27... f6 {[%clk 0:00:02.7]} 28. Bxe5 {[%clk 0:00:21.9]} 28... fxe5 {[%clk
0:00:03.6]} 29. Ng5 {[%clk 0:00:21.7]} 29... Rxd1 {[%clk 0:00:04]} 30. Rxd1
{[%clk 0:00:18.8]} 30... Qc2 {[%clk 0:00:04.4]} 31. Rg1 {[%clk 0:00:14.9]} 31...
Qb1 {[%clk 0:00:04.7]} 32. Qh3 {[%clk 0:00:08.7]} 32... Qxg1+ {[%clk 0:00:04.7]}
0-1